bitfinex-derivatives/quotes_BNBF0:USTF0_20251203
["timestamp","ask_amount","ask_price","bid_price","bid_amount"]
[1764760604708,0.19413576,896.72,895.18,0.74236642]
[1764760604913,0.19413576,896.72,895.12,0.927]
[1764760605113,0.19413576,896.72,895.13,0.74234249]
[1764760605313,0.19413576,896.72,895.14,0.74234249]
[1764760605612,0.19413576,896.72,895.15,0.74234249]
[1764760605914,0.19413576,896.72,895.16,0.74234249]
[1764760606113,0.19413576,896.72,895.17,0.74234249]
[1764760606410,0.19413576,896.72,895.18,0.74234249]
[1764760606709,0.19413576,896.72,895.19,0.74234249]
[1764760606908,0.19413576,896.72,895.12,0.927]
[1764760607113,0.19413576,896.72,895.13,0.74235855]
[1764760607313,0.19413576,896.72,895.14,0.74235855]
[1764760607512,0.19413576,896.72,895.15,0.74235855]
[1764760607709,2.77801101,896.58,895.12,0.927]
[1764760609010,2.77801101,896.59,895.12,0.927]
[1764760609310,2.77801101,896.58,895.12,0.927]
[1764760609714,2.77801101,896.67,895.13,0.74245324]
[1764760610011,2.77801101,896.67,895.12,0.927]
[1764760610215,2.77801101,896.66,895.13,0.74238422]
[1764760610414,2.77801101,896.66,895.14,0.74238422]
[1764760610612,2.77801101,896.66,895.12,0.927]
[1764760610810,2.77801101,896.66,895.13,0.74253453]
[1764760611013,2.77801101,896.66,895.14,0.74253453]
[1764760611214,2.77801101,896.67,895.12,0.927]
[1764760611414,2.77801101,896.67,895.13,0.74247887]
[1764760611611,2.77801101,896.67,895.14,0.74247887]
[1764760611811,2.77801101,896.67,895.12,0.927]
[1764760612111,2.77801101,896.67,895.13,0.74247874]
[1764760612317,0.19413576,896.72,895.14,0.74247874]
[1764760612516,0.19413576,896.72,895.15,0.74247874]
[1764760612812,0.19413576,896.72,895.16,0.74247874]
[1764760613018,0.19413576,896.72,895.12,0.927]
[1764760613214,0.19413576,896.72,895.13,0.74242585]
[1764760613414,2.77801101,896.68,895.14,0.74242585]
[1764760613715,0.19413576,896.72,895.15,0.7423656]
[1764760613914,0.19413576,896.72,895.16,0.7423656]
[1764760614118,0.19413576,896.72,895.17,0.7423656]
[1764760614414,0.19413576,896.72,895.18,0.7423656]
[1764760614714,0.19413576,896.72,895.19,0.7423656]
[1764760615017,0.19413576,896.72,895.2,0.7423656]
[1764760615218,0.19413576,896.72,895.21,0.7423656]
[1764760615515,0.19413576,896.72,895.22,0.7423656]
[1764760615717,0.19413576,896.72,895.23,0.7423656]
[1764760616018,0.19413576,896.72,895.24,0.7423656]
[1764760616215,0.19413576,896.72,895.25,0.7423656]
[1764760616418,0.19413576,896.72,895.26,0.7423656]
[1764760616616,0.19413576,896.72,895.12,0.927]
[1764760616617,0.19413576,896.72,895.27,0.7423656]
[1764760616818,0.19413576,896.72,895.28,0.7423656]
[1764760617018,0.19413576,896.72,895.2,0.83433196]
[1764760617019,0.19413576,896.72,895.29,0.7423656]
[1764760617215,0.19413576,896.72,895.12,0.927]
[1764760617216,0.19413576,896.72,895.3,0.7423656]
[1764760617516,0.19413576,896.72,895.31,0.7423656]
[1764760617716,0.19413576,896.72,895.34,0.83433196]
[1764760617921,0.19413576,896.72,895.35,0.7423656]
[1764760618117,0.19413576,896.72,895.36,0.7423656]
[1764760618318,0.19413576,896.72,895.37,0.7423656]
[1764760618621,0.19413576,896.72,895.38,0.7423656]
[1764760618822,0.19413576,896.72,895.39,0.7423656]
[1764760619123,0.19413576,896.72,895.4,0.7423656]
[1764760619422,0.19413576,896.72,895.41,0.7423656]
[1764760619622,0.19413576,896.72,895.12,0.927]
[1764760619623,0.19413576,896.72,895.5,0.83433196]
[1764760619924,0.19413576,896.72,895.59,0.83433196]
[1764760620118,0.19413576,896.72,895.6,0.7423656]
[1764760620418,0.19413576,896.72,895.62,0.83433196]
[1764760620623,0.19413576,896.72,895.79,0.83433196]
[1764760620923,0.19413576,896.72,895.8,0.7423656]
[1764760621222,0.19413576,896.72,895.81,0.7423656]
[1764760621423,0.19413576,896.72,895.84,0.83433196]
[1764760621617,0.19413576,896.72,895.85,0.7423656]
[1764760621822,0.19413576,896.72,895.86,0.7423656]
[1764760622023,0.19413576,896.72,895.87,0.7423656]
[1764760622224,0.19413576,896.72,895.88,0.7423656]
[1764760622424,0.19413576,896.72,895.89,0.7423656]
[1764760622618,0.19413576,896.72,895.9,0.7423656]
[1764760622820,0.19413576,896.72,895.91,0.7423656]
[1764760623023,0.19413576,896.72,895.12,0.927]
[1764760623024,0.19413576,896.72,895.92,0.7423656]
[1764760623224,0.19413576,896.72,895.82,0.83433196]
[1764760623225,0.19413576,896.72,895.93,0.7423656]
[1764760623421,0.19413576,896.72,895.94,0.7423656]
[1764760623721,0.19413576,896.72,895.82,0.83433196]
[1764760623722,0.19413576,896.72,895.95,0.7423656]
[1764760623920,0.19413576,896.72,895.96,0.7423656]
[1764760624220,0.19413576,896.72,895.97,0.7423656]
[1764760624421,0.19413576,896.72,895.98,0.7423656]
[1764760624725,0.19413576,896.72,895.99,0.7423656]
[1764760624923,0.19413576,896.72,896.0,0.7423656]
[1764760625120,0.19413576,896.72,896.01,0.7423656]
[1764760625321,0.19413576,896.72,895.72,0.83433196]
[1764760625521,0.19413576,896.72,895.73,0.73767026]
[1764760625726,0.19413576,896.72,895.74,0.73767026]
[1764760625927,0.19413576,896.72,895.75,0.73767026]
[1764760626226,0.19413576,896.72,895.76,0.73767026]
[1764760626526,0.19413576,896.72,895.77,0.73767026]
[1764760626722,0.19413576,896.72,895.78,0.73767026]
[1764760626926,0.19413576,896.72,895.79,0.73767026]
[1764760627126,0.19413576,896.72,895.8,0.73767026]
[1764760627427,0.19413576,896.72,895.81,0.73767026]
[1764760627627,0.19413576,896.72,895.82,0.73767026]
[1764760627926,0.19413576,896.72,895.12,0.927]
[1764760627927,0.19413576,896.72,895.83,0.73767026]
[1764760628126,0.19413576,896.72,895.84,0.73767026]
[1764760628422,0.19413576,896.72,895.85,0.73767026]
[1764760628722,0.19413576,896.72,895.86,0.73767026]
[1764760628923,0.19413576,896.72,895.87,0.73767026]
[1764760629125,0.19413576,896.72,895.88,0.73767026]
[1764760629325,0.19413576,896.72,895.58,0.83433196]
[1764760629523,0.19413576,896.72,895.59,0.73705557]
[1764760629722,0.19413576,896.72,895.6,0.73705557]
[1764760629923,0.19413576,896.72,895.61,0.73705557]
[1764760630223,0.19413576,896.72,895.62,0.73705557]
[1764760630524,0.19413576,896.72,895.63,0.73705557]
[1764760630724,0.19413576,896.72,895.64,0.73705557]
[1764760630924,0.19413576,896.72,895.65,0.73705557]
[1764760631228,0.19413576,896.72,895.66,0.73705557]
[1764760631425,0.19413576,896.72,895.67,0.73705557]
[1764760631625,0.19413576,896.72,895.68,0.73705557]
[1764760631830,0.19413576,896.72,895.69,0.73705557]
[1764760632030,0.19413576,896.72,895.7,0.73705557]
[1764760632233,0.19413576,896.72,895.71,0.73705557]
[1764760632430,0.19413576,896.72,895.72,0.73705557]
[1764760632727,0.19413576,896.72,895.73,0.73705557]
[1764760632931,0.19413576,896.72,895.74,0.73705557]
[1764760633133,0.19413576,896.72,895.75,0.73705557]
[1764760633333,0.19413576,896.72,895.76,0.73705557]
[1764760633529,0.19413576,896.72,895.77,0.73705557]
[1764760633730,0.19413576,896.72,895.78,0.73705557]
[1764760633929,0.19413576,896.72,895.79,0.73705557]
[1764760634134,0.19413576,896.72,895.8,0.73705557]
[1764760634339,0.19413576,896.72,895.81,0.73705557]
[1764760634538,0.01211608,897.33,895.49,0.83433196]
[1764760634738,0.19408433,896.5,895.5,0.73684931]
[1764760635037,0.00801608,897.4,895.51,0.73684931]
[1764760635336,2.77801101,898.24,895.52,0.73684931]
[1764760635533,3.88921542,898.56,895.5,0.867]
[1764760635534,2.77801101,898.2,895.53,0.73684931]
[1764760635738,2.77801101,898.2,895.54,0.73684931]
[1764760635932,2.77801101,898.2,895.55,0.73684931]
[1764760636133,2.77801101,898.2,895.56,0.73684931]
[1764760636437,2.77801101,898.2,895.57,0.73684931]
[1764760636737,0.19411248,897.55,895.58,0.73684931]
[1764760636937,0.19411248,897.55,895.59,0.73684931]
[1764760637138,0.19411248,897.55,895.6,0.73684931]
[1764760637335,0.19411248,897.55,895.61,0.73684931]
[1764760637534,0.19411248,897.55,895.62,0.73684931]
[1764760637734,0.19411248,897.55,895.63,0.73684931]
[1764760638039,0.19411248,897.55,895.64,0.73684931]
[1764760638234,0.19411248,897.55,895.65,0.73684931]
[1764760638437,0.19411248,897.55,895.66,0.73684931]
[1764760638637,0.19411248,897.55,895.67,0.73684931]
[1764760638837,0.19411248,897.55,895.68,0.73684931]
[1764760639034,0.19411248,897.55,895.69,0.73684931]
[1764760639334,0.19411248,897.55,895.7,0.73684931]
[1764760639532,0.19411248,897.55,895.71,0.73684931]
[1764760639739,0.19411248,897.55,895.72,0.73684931]
[1764760639936,0.19411248,897.55,895.5,0.867]
[1764760640237,0.19411248,897.55,895.51,0.7374194]
[1764760640434,0.19411248,897.55,895.52,0.7374194]
[1764760640637,0.19411248,897.55,895.53,0.7374194]
[1764760640836,0.19411248,897.55,895.54,0.7374194]
[1764760641136,0.19411248,897.55,895.5,0.867]
[1764760641137,0.19411248,897.55,895.55,0.7374194]
[1764760641337,0.19411248,897.55,895.56,0.7374194]
[1764760641537,0.19411248,897.55,895.57,0.7374194]
[1764760641732,0.19411248,897.55,895.58,0.7374194]
[1764760641936,0.19411248,897.55,895.59,0.7374194]
[1764760642133,0.19411248,897.55,895.6,0.7374194]
[1764760642339,0.19411248,897.55,895.5,0.867]
[1764760642340,0.19411248,897.55,895.61,0.7374194]
[1764760642534,0.19411248,897.55,895.62,0.7374194]
[1764760642736,0.19411248,897.55,895.5,0.867]
[1764760643033,0.19411248,897.55,895.51,0.73782772]
[1764760643235,0.19411248,897.55,895.52,0.73782772]
[1764760643434,0.19411248,897.55,895.53,0.73782772]
[1764760643734,0.19411248,897.55,895.54,0.73782772]
[1764760644037,0.19411248,897.55,895.55,0.73782772]
[1764760644232,0.19411248,897.55,895.56,0.73782772]
[1764760644432,0.19411248,897.55,895.57,0.73782772]
[1764760644633,0.19411248,897.55,895.58,0.73782772]
[1764760644832,0.19411248,897.55,895.59,0.73782772]
[1764760645035,0.19411248,897.55,895.6,0.73782772]
[1764760645241,0.19411248,897.55,895.5,0.867]
[1764760645435,0.19411248,897.55,895.51,0.73824061]
[1764760645641,0.19411248,897.55,895.52,0.73824061]
[1764760645938,0.19411248,897.55,895.53,0.73824061]
[1764760646138,0.19411248,897.55,895.54,0.73824061]
[1764760646335,0.19411248,897.55,895.55,0.73824061]
[1764760646636,0.19411248,897.55,895.5,0.867]
[1764760648442,0.19411248,897.55,895.51,1.204]
[1764760648641,2.77801101,897.5,895.51,1.204]
[1764760649548,2.77801101,897.43,895.51,1.204]
[1764760650647,2.77801101,897.42,895.51,1.204]
[1764760650844,2.77801101,897.42,895.52,1.184]
[1764760651646,2.77801101,897.41,895.52,1.184]
[1764760652151,2.77801101,897.4,895.52,1.184]
[1764760652651,2.77801101,897.39,895.52,1.184]
[1764760653650,2.77801101,897.38,895.52,1.184]
[1764760654250,2.77801101,897.37,895.52,1.184]
[1764760654748,2.77801101,897.36,895.52,1.184]
[1764760655250,2.77801101,897.35,895.52,1.184]
[1764760656250,2.77801101,897.33,895.52,1.184]
[1764760657454,2.77801101,897.32,895.52,1.184]
[1764760657850,0.19411248,897.55,895.52,1.184]
[1764760657851,2.77801101,897.37,895.52,1.184]
[1764760658351,2.77801101,897.36,895.52,1.184]
[1764760659555,2.77801101,897.35,895.52,1.184]
[1764760659953,2.77801101,897.28,895.52,1.184]
[1764760660356,2.77801101,897.27,895.52,1.184]
[1764760661553,2.77801101,897.26,895.52,1.184]
[1764760662453,2.77801101,897.24,895.52,1.184]
[1764760663458,2.77801101,897.23,895.52,1.184]
[1764760664559,2.77801101,897.22,895.52,1.184]
[1764760665159,2.77801101,897.23,895.52,1.184]
[1764760665560,2.77801101,897.21,895.52,1.184]
[1764760666857,2.77801101,897.2,895.52,1.184]
[1764760667159,2.77801101,897.19,895.52,1.184]
[1764760668161,2.77801101,897.17,895.52,1.184]
[1764760669161,2.77801101,897.16,895.52,1.184]
[1764760670263,2.77801101,897.15,895.52,1.184]
[1764760671260,3.88921542,897.47,895.52,1.184]
[1764760671261,2.77801101,897.14,895.52,1.184]
[1764760671960,2.77801101,897.15,895.52,1.184]
[1764760672264,2.77801101,897.14,895.52,1.184]
[1764760673065,2.77801101,897.25,895.52,1.184]
[1764760673564,2.77801101,897.24,895.52,1.184]
[1764760674662,2.77801101,897.24,895.53,0.824]
[1764760678262,2.77801101,897.27,895.53,0.824]
[1764760678666,2.77801101,897.21,895.53,0.824]
[1764760679164,2.77801101,897.22,895.53,0.824]
[1764760681265,2.77801101,897.23,895.53,0.824]
[1764760681462,2.77801101,897.23,895.54,0.895]
[1764760681869,2.77801101,897.3,895.54,0.895]
[1764760682468,2.77801101,897.27,895.54,0.895]
[1764760683369,2.77801101,897.25,895.54,0.895]
[1764760684470,0.19411248,897.55,895.54,0.895]
[1764760684471,2.77801101,897.23,895.54,0.895]
[1764760684970,2.77801101,897.28,895.54,0.895]
[1764760685372,2.77801101,897.26,895.54,0.895]
[1764760686667,2.77801101,897.25,895.54,0.895]
[1764760687467,2.77801101,897.23,895.54,0.895]
[1764760688066,2.77801101,897.24,895.54,0.895]
[1764760688274,2.77801101,897.24,895.55,0.73248121]
[1764760688468,2.77801101,897.23,895.54,0.895]
[1764760688669,2.77801101,897.23,895.55,0.73248121]
[1764760688973,2.77801101,897.23,895.54,0.895]
[1764760689167,2.77801101,897.23,895.55,0.73248094]
[1764760689371,2.77801101,897.23,895.56,0.73248094]
[1764760689567,2.77801101,897.38,895.57,0.73248094]
[1764760689872,2.77801101,897.38,895.58,0.73248094]
[1764760690071,2.77801101,897.4,895.59,0.73248094]
[1764760690271,2.77801101,897.4,895.6,0.73248094]
[1764760690469,2.77801101,897.4,895.61,0.73248094]
[1764760690669,2.77801101,897.4,895.62,0.73248094]
[1764760690869,2.77801101,897.4,895.63,0.73248094]
[1764760691073,2.77801101,897.4,895.64,0.73248094]
[1764760691369,2.77801101,897.4,895.65,0.73248094]
[1764760691569,2.77801101,897.4,895.54,0.895]
[1764760691570,2.77801101,897.39,895.66,0.73248094]
[1764760691769,2.77801101,897.39,895.67,0.73248094]
[1764760691974,2.77801101,897.39,895.68,0.73248094]
[1764760692175,2.77801101,897.39,895.69,0.73248094]
[1764760692375,2.77801101,897.39,895.7,0.73248094]
[1764760692674,2.77801101,897.4,895.71,0.73248094]
[1764760692871,2.77801101,897.4,895.72,0.73248094]
[1764760693174,2.77801101,897.4,895.73,0.73248094]
[1764760693376,2.77801101,897.4,895.74,0.73248094]
[1764760693576,2.77801101,897.39,895.75,0.73248094]
[1764760693774,2.77801101,897.39,895.76,0.73248094]
[1764760693972,2.77801101,897.39,895.77,0.73248094]
[1764760694176,2.77801101,897.4,895.78,0.73248094]
[1764760694376,2.77801101,897.4,895.79,0.73248094]
[1764760694677,2.77801101,897.39,895.8,0.73248094]
[1764760694878,2.77801101,897.39,895.54,0.895]
[1764760695078,2.77801101,897.39,895.55,0.73305347]
[1764760695275,2.77801101,897.4,895.56,0.73305347]
[1764760695479,2.77801101,897.4,895.57,0.73305347]
[1764760695675,2.77801101,897.38,895.58,0.73305347]
[1764760695880,2.77801101,897.38,895.59,0.73305347]
[1764760696082,2.77801101,897.38,895.6,0.73305347]
[1764760696275,2.77801101,897.39,895.61,0.73305347]
[1764760696477,2.77801101,897.39,895.62,0.73305347]
[1764760696677,2.77801101,897.39,895.63,0.73305347]
[1764760696877,2.77801101,897.39,895.64,0.73305347]
[1764760697077,2.77801101,897.39,895.65,0.73305347]
[1764760697280,2.77801101,897.39,895.66,0.73305347]
[1764760697478,2.77801101,897.39,895.67,0.73305347]
[1764760697677,2.77801101,897.31,895.68,0.73305347]
[1764760697881,2.77801101,897.31,895.69,0.73305347]
[1764760698181,2.77801101,897.31,895.53,0.824]
[1764760698477,2.77801101,897.31,895.54,0.73283955]
[1764760698675,2.77801101,897.31,895.55,0.73283955]
[1764760698877,2.77801101,897.31,895.56,0.73283955]
[1764760699076,2.77801101,897.31,895.57,0.73283955]
[1764760699280,2.77801101,897.31,895.58,0.73283955]
[1764760699476,2.77801101,897.31,895.59,0.73283955]
[1764760699680,2.77801101,897.31,895.6,0.73283955]
[1764760699880,2.77801101,897.31,895.61,0.73283955]
[1764760700082,2.77801101,897.31,895.62,0.73283955]
[1764760700280,2.77801101,897.32,895.63,0.73283955]
[1764760700478,2.77801101,897.32,895.64,0.73283955]
[1764760700682,2.77801101,897.32,895.65,0.73283955]
[1764760700978,2.77801101,897.32,895.61,0.91]
[1764760700979,2.77801101,897.31,895.66,0.73283955]
[1764760701182,2.77801101,897.31,895.67,0.73283955]
[1764760701383,2.77801101,897.31,895.61,0.91]
[1764760701584,2.77801101,897.31,895.62,0.73263698]
[1764760701779,2.77801101,897.31,895.63,0.73263698]
[1764760701982,2.77801101,897.31,895.64,0.73263698]
[1764760702183,2.77801101,897.31,895.65,0.73263698]
[1764760702383,2.77801101,897.32,895.66,0.73263698]
[1764760702582,2.77801101,897.32,895.61,0.91]
[1764760702784,2.77801101,897.32,895.62,0.73255586]
[1764760702985,2.77801101,897.32,895.63,0.73255586]
[1764760703183,2.77801101,897.32,895.64,0.73255586]
[1764760703384,2.77801101,897.32,895.65,0.73255586]
[1764760703585,2.77801101,897.32,895.66,0.73255586]
[1764760703785,2.77801101,897.32,895.61,0.91]
[1764760703986,2.77801101,897.32,895.62,0.73247779]
[1764760704187,2.77801101,897.32,895.63,0.73247779]
[1764760704385,2.77801101,897.33,895.64,0.73247779]
[1764760704680,2.77801101,897.33,895.65,0.73247779]
[1764760704882,2.77801101,897.33,895.61,0.91]
[1764760705086,2.77801101,897.33,895.62,0.73239927]
[1764760705285,2.77801101,897.33,895.63,0.73239927]
[1764760705486,2.77801101,897.33,895.64,0.73239927]
[1764760705782,2.77801101,897.33,895.65,0.73239927]
[1764760705981,2.77801101,897.33,895.61,0.91]
[1764760706285,2.77801101,897.33,895.62,0.73232439]
[1764760706586,2.77801101,897.34,895.63,0.73232439]
[1764760706786,2.77801101,897.34,895.64,0.73232439]
[1764760706988,2.77801101,897.34,895.61,0.91]
[1764760707185,2.77801101,897.34,895.62,0.73221909]
[1764760707389,2.77801101,897.34,895.63,0.73221909]
[1764760707587,2.77801101,897.35,895.64,0.73221909]
[1764760707789,2.77801101,897.35,895.65,0.73221909]
[1764760707987,2.77801101,897.35,895.66,0.73221909]
[1764760708189,0.19411248,897.55,895.61,0.91]
[1764760708190,2.97212349,897.55,895.67,0.73221909]
[1764760708389,2.97212349,897.55,895.68,0.73221909]
[1764760708591,0.19411248,897.55,895.69,0.73221909]
[1764760708791,0.19411248,897.55,895.7,0.73221909]
[1764760708990,0.19411248,897.55,895.71,0.73221909]
[1764760709189,0.19411248,897.55,895.72,0.73221909]
[1764760709489,0.19411248,897.55,895.73,0.73221909]
[1764760709687,0.19411248,897.55,895.74,0.73332728]
[1764760709991,0.19411248,897.55,895.75,0.73332728]
[1764760710193,0.19411248,897.55,895.76,0.73332728]
[1764760710492,0.19411248,897.55,895.77,0.73332728]
[1764760710794,0.19411248,897.55,895.78,0.73332728]
[1764760710988,0.19411248,897.55,895.79,0.73332728]
[1764760711193,0.19411248,897.55,895.8,0.73332728]
[1764760711393,0.19411248,897.55,895.81,0.73332728]
[1764760711693,0.19411248,897.55,895.82,0.73332728]
[1764760711894,0.19411248,897.55,895.83,0.73332728]
[1764760712191,0.19411248,897.55,895.61,0.91]
[1764760712390,0.19411248,897.55,895.62,0.73317605]
[1764760712590,0.19411248,897.55,895.63,0.73317605]
[1764760712792,0.19411248,897.55,895.64,0.73317605]
[1764760712996,0.19411248,897.55,895.65,0.73317605]
[1764760713200,0.19411248,897.55,895.66,0.73317605]
[1764760713399,0.19411248,897.55,895.67,0.73317605]
[1764760713596,0.19411248,897.55,895.68,0.73317605]
[1764760713896,2.77801101,897.54,895.69,0.73317605]
[1764760714101,2.77801101,897.54,895.7,0.73317605]
[1764760714300,2.77801101,897.54,895.71,0.73317605]
[1764760714601,2.77801101,897.54,895.72,0.73317605]
[1764760714800,2.77801101,897.54,895.73,0.73317605]
[1764760715000,2.77801101,897.54,895.74,0.73317605]
[1764760715201,2.77801101,897.54,895.75,0.73317605]
[1764760715502,2.77801101,897.54,895.76,0.73317605]
[1764760715698,2.77801101,897.54,895.77,0.73317605]
[1764760715898,2.77801101,897.54,895.78,0.73317605]
[1764760716098,2.77801101,897.54,895.79,0.73317605]
[1764760716299,2.77801101,897.54,895.8,0.73317605]
[1764760716500,2.77801101,897.54,895.61,0.91]
[1764760716705,2.77801101,897.54,895.62,0.73311966]
[1764760716899,2.77801101,897.54,895.61,0.91]
[1764760716900,2.97212349,897.55,895.63,0.73311966]
[1764760717104,2.97212349,897.55,895.64,0.73311966]
[1764760717303,2.97212349,897.55,895.65,0.73311966]
[1764760717505,0.19411248,897.55,895.66,0.73311966]
[1764760717804,0.19411248,897.55,895.67,0.73311966]
[1764760718004,2.77801101,897.53,895.68,0.73311966]
[1764760718204,2.77801101,897.53,895.69,0.73311966]
[1764760718405,2.77801101,897.53,895.7,0.73311966]
[1764760718602,2.77801101,897.53,895.71,0.73311966]
[1764760718800,2.77801101,897.53,895.72,0.73311966]
[1764760719006,2.77801101,897.53,895.73,0.73311966]
[1764760719202,2.77801101,897.53,895.74,0.73311966]
[1764760719402,2.77801101,897.53,895.75,0.73311966]
[1764760719601,2.77801101,897.53,895.61,0.91]
[1764760719602,2.77801101,897.53,895.76,0.73311966]
[1764760719800,2.77801101,897.53,895.77,0.73311966]
[1764760720004,2.77801101,897.53,895.78,0.73311966]
[1764760720203,2.77801101,897.53,895.61,0.91]
[1764760720404,2.77801101,897.53,895.62,0.73308196]
[1764760720700,2.77801101,897.53,895.63,0.73308196]
[1764760720901,2.77801101,897.53,895.64,0.73308196]
[1764760721100,2.77801101,897.53,895.65,0.73308196]
[1764760721301,2.77801101,897.53,895.66,0.73308196]
[1764760721602,2.77801101,897.52,895.67,0.73308196]
[1764760721804,2.77801101,897.52,895.68,0.73308196]
[1764760722003,2.77801101,897.52,895.69,0.73308196]
[1764760722205,2.77801101,897.52,895.7,0.73308196]
[1764760722403,2.77801101,897.52,895.71,0.73308196]
[1764760722605,2.77801101,897.52,895.72,0.73308196]
[1764760722804,2.77801101,897.52,895.73,0.73308196]
[1764760723101,2.77801101,897.52,895.74,0.73308196]
[1764760723305,2.77801101,897.52,895.75,0.73308196]
[1764760723601,2.77801101,897.52,895.76,0.73308196]
[1764760723802,0.19411248,897.55,895.77,0.73308196]
[1764760724006,0.19411248,897.55,895.78,0.73308196]
[1764760724303,0.19411248,897.55,895.79,0.73308196]
[1764760724506,0.19411248,897.55,895.8,0.73308196]
[1764760724703,0.19411248,897.55,895.81,0.73308196]
[1764760724907,0.19411248,897.55,895.82,0.73308196]
[1764760725205,0.19411248,897.55,895.83,0.73308196]
[1764760725407,0.19411248,897.55,895.84,0.73308196]
[1764760725607,0.19411248,897.55,895.85,0.73308196]
[1764760725803,0.19411248,897.55,895.86,0.73308196]
[1764760726008,0.19411248,897.55,895.87,0.73308196]
[1764760726307,0.19411248,897.55,895.61,0.91]
[1764760726607,0.19411248,897.55,895.62,0.73332781]
[1764760726902,0.19411248,897.55,895.63,0.73332781]
[1764760727107,0.19411248,897.55,895.64,0.73332781]
[1764760727304,0.19411248,897.55,895.65,0.73332781]
[1764760727508,0.19411248,897.55,895.66,0.73332781]
[1764760727706,0.19411248,897.55,895.67,0.73332781]
[1764760727910,0.19411248,897.55,895.68,0.73332781]
[1764760728106,0.19411248,897.55,895.69,0.73332781]
[1764760728311,0.19411248,897.55,895.7,0.73332781]
[1764760728510,0.19411248,897.55,895.71,0.73332781]
[1764760728710,0.19411248,897.55,895.72,0.73332781]
[1764760728911,0.19411248,897.55,895.73,0.73332781]
[1764760729113,0.19411248,897.55,895.74,0.73332781]
[1764760729313,0.19411248,897.55,895.75,0.73332781]
[1764760729513,0.19411248,897.55,895.76,0.73332781]
[1764760729712,0.19411248,897.55,895.77,0.73332781]
[1764760729911,0.19411248,897.55,895.78,0.73332781]
[1764760730112,0.19411248,897.55,895.79,0.73332781]
[1764760730414,0.19411248,897.55,895.72,1.385]
[1764760730415,0.19411248,897.55,895.8,0.73332781]
[1764760730609,0.19411248,897.55,895.81,0.73332781]
[1764760730814,0.19411248,897.55,895.82,0.73332781]
[1764760731011,0.19411248,897.55,895.83,0.73332781]
[1764760731316,0.19411248,897.55,895.84,0.73332781]
[1764760731511,0.19411248,897.55,895.85,0.73332781]
[1764760731710,0.19411248,897.55,895.86,0.73332781]
[1764760731914,0.19411248,897.55,895.87,0.73332781]
[1764760732114,0.19411248,897.55,895.88,0.73332781]
[1764760732312,0.19411248,897.55,895.89,0.73332781]
[1764760732512,0.19411248,897.55,895.9,0.73332781]
[1764760732711,0.19411248,897.55,895.91,0.73332781]
[1764760733016,0.19411248,897.55,895.92,0.73332781]
[1764760733216,0.19411248,897.55,895.93,0.73332781]
[1764760733418,0.19411248,897.55,895.94,0.73332781]
[1764760733615,0.19411248,897.55,895.95,0.73332781]
[1764760733813,0.19411248,897.55,895.96,0.73332781]
[1764760734119,0.19411248,897.55,895.97,0.73332781]
[1764760734413,0.19411248,897.55,895.98,0.73332781]
[1764760734618,0.19411248,897.55,895.99,0.73332781]
[1764760734817,0.19411248,897.55,896.0,0.73332781]
[1764760735017,0.19411248,897.55,895.97,1.39]
[1764760735313,0.19411248,897.55,895.98,0.73389266]
[1764760735512,0.19411248,897.55,895.99,0.73389266]
[1764760735716,0.19411248,897.55,896.0,0.73389266]
[1764760736011,0.19411248,897.55,895.97,1.39]
[1764760736315,0.19411248,897.55,895.98,0.73393405]
[1764760736517,0.19411248,897.55,895.99,0.73393405]
[1764760736717,0.19411248,897.55,896.0,0.73393405]
[1764760736919,0.19411248,897.55,895.97,1.39]
[1764760737117,0.19411248,897.55,895.98,0.73404528]
[1764760737319,0.19411248,897.55,895.99,0.73404528]
[1764760737619,0.19411248,897.55,896.0,0.73404528]
[1764760737920,2.77801101,897.5,895.97,1.39]
[1764760739419,2.77801101,897.49,895.97,1.39]
[1764760741420,2.77801101,897.48,895.97,1.39]
[1764760742415,2.77801101,897.47,895.97,1.39]
[1764760743615,2.77801101,897.46,895.97,1.39]
[1764760744520,2.77801101,897.45,895.97,1.39]
[1764760745220,2.77801101,897.45,895.72,1.385]
[1764760745421,2.77801101,897.45,895.73,0.73699456]
[1764760745721,0.19411248,897.55,895.74,0.73699456]
[1764760745722,2.77801101,897.44,895.74,0.73699456]
[1764760745921,2.77801101,897.44,895.75,0.73699456]
[1764760746117,2.77801101,897.44,895.76,0.73699456]
[1764760746321,2.77801101,897.44,895.77,0.73699456]
[1764760746516,2.77801101,897.44,895.78,0.73699456]
[1764760746718,2.77801101,897.44,895.72,1.385]
[1764760746719,2.77801101,897.44,895.79,0.73699456]
[1764760746923,2.77801101,897.44,895.8,0.73699456]
[1764760747121,2.77801101,897.46,895.81,0.73699456]
[1764760747325,2.77801101,897.46,895.82,0.73699456]
[1764760747524,2.77801101,897.46,895.83,0.73699456]
[1764760747721,2.77801101,897.46,895.84,0.73699456]
[1764760747925,2.77801101,897.46,895.72,1.385]
[1764760747926,2.77801101,897.46,895.85,0.73699456]